bitfinex/quotes_ETHUSD_20211001
["timestamp","ask_amount","ask_price","bid_price","bid_amount"]
[1633085614025,0.00709175,3209.8,3209.7,7.92992891]
[1633085614428,0.00709175,3209.8,3209.7,9.22392891]
[1633085614625,0.00709175,3209.8,3209.7,8.85682548]
[1633085615025,0.006,3211.1,3210.2,0.03409175]
[1633085615231,0.006,3211.3,3211.1,0.92921917]
[1633085615527,0.006,3211.3,3211.1,1.44664423]
[1633085615727,0.006,3211.3,3211.1,6.44664423]
[1633085615928,0.006,3211.3,3211.1,4.92389506]
[1633085616126,0.84154894,3211.3,3211.1,5.42991529]
[1633085616325,0.84154894,3211.3,3210.2,0.85245]
[1633085616531,1.99847953,3211.1,3210.4,0.49070871]
[1633085616728,0.02541045,3210.8,3209.7,0.003]
[1633085616929,0.153,3210.7,3209.7,0.003]
[1633085617128,0.92522683,3210.4,3209.7,1.45246542]
[1633085617327,0.153,3210.7,3210.0,1.294]
[1633085617530,0.153,3210.7,3209.9,5.0]
[1633085617731,0.02433465,3210.9,3210.6,0.45061831]
[1633085617928,0.003,3211.0,3210.9,10.39612052]
[1633085618129,0.003,3211.0,3210.8,5.63859947]
[1633085618529,0.006,3211.2,3210.9,1.294]
[1633085618730,0.009,3211.5,3211.0,1.11897079]
[1633085618929,0.006,3212.2,3211.3,0.038358]
[1633085619129,0.006,3212.2,3211.3,0.06354813]
[1633085619330,0.006,3212.2,3211.5,0.003]
[1633085619528,0.006,3212.2,3211.5,0.7486691]
[1633085619731,0.19452287,3211.5,3211.2,0.003]
[1633085619928,0.2202453,3211.5,3211.2,0.003]
[1633085620129,0.19452287,3211.5,3211.1,0.003]
[1633085620331,0.19452287,3211.5,3211.3,2.19994082]
[1633085620527,0.19452287,3211.5,3211.0,0.006]
[1633085620729,0.006,3212.3,3211.4,0.003]
[1633085620930,0.006,3212.3,3211.4,8.1163465]
[1633085621127,0.006,3212.3,3211.4,5.0]
[1633085621330,0.006,3212.3,3211.5,0.003]
[1633085621528,0.006,3212.3,3211.8,1.294]
[1633085621727,0.006,3212.3,3211.6,1.16983991]
[1633085621728,0.006,3212.3,3211.5,0.003]
[1633085622128,0.1047,3212.1,3211.5,0.003]
[1633085622327,0.1047,3212.1,3211.8,3.11255]
[1633085622527,0.1047,3212.1,3211.9,11.2256939]
[1633085622728,0.1047,3212.1,3211.9,8.11284]
[1633085622932,0.1047,3212.1,3211.6,5.0]
[1633085623130,0.1047,3212.1,3211.5,0.003]
[1633085623330,0.153,3212.0,3211.5,0.003]
[1633085623530,0.153,3212.0,3211.2,3.11378]
[1633085623729,0.1047,3212.1,3211.2,3.11378]
[1633085623931,0.1047,3212.1,3211.3,0.003]
[1633085624130,0.1047,3212.1,3211.4,4.00194154]
[1633085624330,0.10587335,3212.1,3211.5,5.0]
[1633085624529,0.10587335,3212.1,3211.5,5.003]
[1633085624730,0.10587335,3212.1,3211.8,5.0]
[1633085625333,8.25581055,3211.8,3211.5,0.003]
[1633085625536,0.153,3211.7,3211.5,0.003]
[1633085625731,8.25581055,3211.8,3211.5,0.003]
[1633085625933,0.1047,3211.7,3211.5,0.003]
[1633085626335,0.153,3211.6,3211.5,0.003]
[1633085626535,18.003,3211.6,3211.5,0.003]
[1633085626936,0.13013426,3211.7,3211.6,15.63220399]
[1633085627133,0.1047,3211.7,3211.6,22.52497773]
[1633085627332,0.1047,3211.7,3211.6,17.52497773]
[1633085627532,0.2577,3211.7,3211.6,17.52497773]
[1633085627932,10.33533463,3211.7,3211.6,17.52497773]
[1633085628135,1.08533463,3211.7,3211.6,17.52497773]
[1633085628333,0.2077,3211.7,3211.6,17.52497773]
[1633085628933,8.16351055,3211.8,3211.6,17.52497773]
[1633085629132,0.153,3212.0,3211.8,3.30801901]
[1633085629334,0.006,3212.4,3212.3,0.64949579]
[1633085629535,0.81269823,3212.4,3212.3,0.64949579]
[1633085629735,0.006,3212.4,3212.3,0.64949579]
[1633085631334,0.006,3212.4,3212.3,1.94349579]
[1633085631534,0.006,3212.4,3212.3,0.64949579]
[1633085632133,0.006,3212.4,3212.3,5.64949579]
[1633085632936,0.006,3212.4,3212.3,12.09349579]
[1633085633636,0.006,3212.4,3212.3,12.81351871]
[1633085633835,0.009,3212.5,3212.3,13.33359241]
[1633085634135,0.009,3212.5,3212.4,1.294]
[1633085634336,0.009,3212.5,3212.3,7.37098241]
[1633085634741,0.009,3212.5,3212.3,5.64949579]
[1633085634940,0.009,3212.5,3212.3,0.64949579]
[1633085635140,0.009,3212.5,3211.8,7.0]
[1633085635141,1.96695505,3212.3,3211.8,7.0]
[1633085635540,1.96695505,3212.3,3211.9,3.11326]
[1633085635745,1.96695505,3212.3,3212.2,0.90531715]
[1633085635944,1.96695505,3212.3,3211.9,3.11326]
[1633085636538,1.96695505,3212.3,3212.1,4.4068714]
[1633085636739,0.01016311,3212.5,3212.2,5.0]
[1633085637542,0.01016311,3212.5,3212.3,3.11285]
[1633085637741,0.006,3213.8,3212.5,7.65]
[1633085637947,0.006,3213.8,3213.3,0.153]
[1633085638144,0.006,3213.8,3213.4,1.12182874]
[1633085638343,0.006,3213.8,3213.6,0.02454256]
[1633085638543,0.006,3213.8,3213.6,0.71650434]
[1633085638841,12.28833308,3213.4,3213.3,0.153]
[1633085639040,1.83833308,3213.4,3213.3,0.153]
[1633085639442,1.83833308,3213.4,3213.3,0.02514973]
[1633085639640,1.83833308,3213.4,3213.3,5.02514973]
[1633085639840,0.70836188,3213.6,3213.3,0.02514973]
[1633085639841,0.45164488,3213.6,3213.3,0.02514973]
[1633085640041,0.153,3213.5,3213.3,0.02514973]
[1633085641214,0.005,3214.5,3214.4,0.75179135]
[1633085641540,0.005,3214.5,3213.5,5.003]
[1633085642344,0.005,3214.5,3214.0,1.294]
[1633085642541,0.005,3214.5,3214.4,8.31735631]
[1633085642741,0.005,3214.5,3214.3,5.0]
[1633085642941,0.009,3215.0,3214.3,5.0]
[1633085642942,3.98072093,3215.7,3214.3,5.00890416]
[1633085643142,0.153,3215.1,3214.4,3.31086282]
[1633085643343,0.153,3215.5,3215.0,1.21110625]
[1633085643543,1.90839244,3215.9,3215.3,1.85605431]
[1633085643744,3.710559,3215.8,3215.5,0.99967851]
[1633085643941,1.230559,3215.8,3215.4,5.0]
[1633085645147,1.230559,3215.8,3214.4,3.1162639]
[1633085645346,1.230559,3215.8,3215.4,5.0]
[1633085645546,0.006,3216.1,3216.0,0.96976556]
[1633085645746,3.997272,3216.2,3216.1,17.856]
[1633085645747,1.613572,3216.2,3216.1,17.856]
[1633085645947,0.009,3216.5,3216.3,2.01827569]
[1633085646145,0.006,3217.4,3216.7,17.856]
[1633085646350,0.006,3218.3,3217.1,4.6608]
[1633085646547,0.7597418,3218.3,3217.2,4.989139]
[1633085646745,0.7597418,3218.3,3217.3,0.14215856]
[1633085647148,8.83815964,3218.2,3217.0,0.88712148]
[1633085647347,3.61164903,3218.0,3217.3,1.294]
[1633085647548,0.009,3218.0,3217.5,15.5384068]
[1633085647750,3.44226912,3218.1,3217.5,0.80195123]
[1633085647951,5.25411,3218.2,3217.5,0.003]
[1633085648348,5.25411,3218.2,3217.6,0.01256724]
[1633085648748,5.25411,3218.2,3217.9,0.96368296]
[1633085648952,13.5,3218.1,3217.3,0.54274]
[1633085649147,0.95515821,3217.1,3217.0,0.003]
[1633085649550,1.294,3217.0,3216.5,0.003]
[1633085649948,0.82947509,3216.9,3216.5,0.003]
[1633085650753,3.54091929,3216.8,3216.5,0.003]
[1633085650949,0.153,3216.7,3216.5,0.003]
[1633085651150,13.303,3216.6,3216.5,0.003]
[1633085651554,14.81838945,3216.6,3216.5,0.003]
[1633085651852,1.15666805,3216.2,3215.8,0.96836601]
[1633085652052,1.15666805,3216.2,3215.5,0.003]
[1633085652453,1.15666805,3216.2,3214.9,0.006]
[1633085652654,2.04823274,3216.2,3215.5,0.71736345]
[1633085652855,0.001,3215.8,3214.9,3.10424528]
[1633085653053,0.001,3215.8,3215.2,0.898284]
[1633085653354,1.10766805,3216.2,3215.2,0.898284]
[1633085653753,1.10766805,3216.2,3215.3,0.01190059]
[1633085653957,2.07603081,3216.2,3215.3,0.01190059]
[1633085654157,2.07603081,3216.2,3215.4,0.003]
[1633085654557,0.153,3216.1,3214.7,2.0]
[1633085654754,0.003,3215.5,3214.7,2.0]
[1633085654953,2.1008417,3216.2,3214.4,0.003]
[1633085654954,0.77628574,3215.3,3214.4,0.003]
[1633085655153,0.77628574,3215.3,3215.0,0.003]
[1633085655354,0.153,3215.2,3215.0,0.003]
[1633085655753,0.153,3215.2,3215.1,0.003]
[1633085656218,0.153,3215.2,3214.4,0.009]
[1633085656355,0.15437028,3215.2,3214.4,0.006]
[1633085656555,0.81561721,3215.1,3214.3,0.009]
[1633085656758,0.9845771,3214.5,3214.3,0.009]
[1633085656957,0.153,3214.4,3214.3,0.009]
[1633085657158,0.277,3215.1,3214.3,0.009]
[1633085657358,0.103,3215.1,3214.4,0.18389285]
[1633085657759,0.103,3215.1,3214.5,0.009]
[1633085657958,4.77027,3215.1,3214.5,0.009]
[1633085658559,6.41802938,3215.2,3214.5,0.009]
[1633085658560,0.19322938,3215.2,3215.1,0.0026]
[1633085658756,0.17892938,3215.2,3215.1,16.9812934]
[1633085658957,0.17892938,3215.2,3215.1,1.84783619]
[1633085659156,0.17892938,3215.2,3215.1,0.1086]
[1633085659360,0.33192938,3215.2,3215.1,0.1086]
[1633085659557,18.18192938,3215.2,3215.1,0.1086]
[1633085660159,18.89530712,3215.2,3215.1,0.1086]
[1633085660559,20.72688583,3215.2,3215.1,0.0001]
[1633085660759,3.11224,3214.8,3213.5,0.003]
[1633085660956,3.11224,3214.8,3213.5,0.006]
[1633085660957,0.153,3214.7,3213.5,0.006]
[1633085661156,0.153,3214.7,3213.6,0.98326464]
[1633085661157,0.72176447,3214.2,3213.6,0.98326464]
[1633085661357,0.87476447,3214.2,3213.6,0.98326464]
[1633085661557,0.87476447,3214.2,3213.7,0.003]
[1633085661558,0.153,3214.2,3213.7,0.003]
[1633085661959,0.153,3214.7,3213.7,0.003]
[1633085662158,0.27832682,3214.1,3213.7,0.003]
[1633085662358,0.22832682,3214.1,3213.7,0.003]
[1633085662758,0.156,3215.0,3213.9,1.294]
[1633085662958,0.156,3215.0,3214.2,0.0252762]
[1633085662959,0.003,3215.0,3214.2,0.0252762]
[1633085663360,0.82520655,3215.0,3214.2,0.0252762]
[1633085663559,0.82520655,3215.0,3214.1,5.22832682]
[1633085663760,0.003,3215.0,3214.1,5.22832682]
[1633085664159,0.003,3215.0,3214.1,0.22832682]
[1633085664360,0.153,3214.9,3214.1,0.22832682]
[1633085664563,0.003,3215.0,3214.2,5.0]
[1633085664760,0.75798243,3214.8,3214.2,0.816814]
[1633085664960,0.16181606,3214.2,3214.1,0.22832682]
[1633085665462,0.11181606,3214.2,3214.1,0.22832682]
[1633085666662,1.53723159,3214.2,3214.1,0.22832682]
[1633085666863,1.69124011,3214.2,3214.1,0.22832682]
[1633085667068,0.16582458,3214.2,3214.1,0.22832682]
[1633085667463,0.01282458,3214.2,3214.1,0.22832682]
[1633085667865,0.26607668,3214.2,3214.1,0.22832682]
[1633085668263,0.01282458,3214.2,3214.1,0.35232435]
[1633085670666,3.07479458,3214.6,3214.1,0.35232435]
[1633085671328,0.003,3215.0,3214.1,0.35232435]
[1633085671728,0.003,3215.0,3214.1,1.35478385]
[1633085672125,0.003,3215.0,3214.2,0.98220539]
[1633085672332,4.66726,3214.9,3214.1,0.35232435]
[1633085672527,3.11203,3214.7,3214.1,0.35232435]
[1633085672726,0.003,3215.0,3214.1,0.35232435]
[1633085673126,0.003,3215.0,3214.1,0.22832682]
[1633085673328,0.2531027,3214.9,3214.1,0.22832682]
[1633085673528,0.2531027,3214.9,3214.2,4.66593]
[1633085673726,0.003,3215.0,3214.1,0.22832682]
[1633085673927,0.003,3215.0,3214.2,0.12408733]
[1633085674328,0.75180179,3214.6,3214.2,0.12408733]
[1633085675731,0.004,3215.0,3214.2,0.12408733]
[1633085675931,3.11154,3214.8,3214.2,0.12408733]
[1633085676132,0.004,3215.0,3214.2,0.12408733]
[1633085676732,0.97958855,3214.7,3214.2,0.12408733]
[1633085677133,0.004,3215.0,3214.2,0.12408733]
[1633085677332,0.0009459,3214.7,3214.2,0.12408733]
[1633085678533,0.7350541,3214.7,3214.2,0.12408733]
[1633085678731,0.7350541,3214.7,3214.1,0.22832682]
[1633085678935,0.98817547,3214.7,3214.1,0.22832682]
[1633085679133,0.0009459,3214.7,3214.4,1.294]
[1633085679335,0.0009459,3214.7,3214.2,6.34565287]
[1633085679735,0.0009459,3214.7,3214.2,6.15284981]
[1633085679937,0.153,3214.6,3214.2,0.12407467]
[1633085680137,0.9949238,3214.5,3214.2,0.12407467]
[1633085680334,0.153,3214.6,3214.2,0.12407467]
[1633085680535,9.33684,3215.5,3214.2,0.12407467]
[1633085680536,0.153,3215.3,3214.2,0.12407467]
[1633085680736,1.96900933,3215.2,3214.2,0.12407467]
[1633085680938,1.88510786,3214.9,3214.5,0.003]
[1633085681136,0.153,3214.8,3214.3,0.003]
[1633085681335,4.82032,3214.8,3214.3,0.003]
[1633085681535,0.153,3214.8,3214.3,0.003]
[1633085681735,1.08221267,3214.8,3214.3,0.003]
[1633085681935,0.053,3214.8,3214.3,0.003]
[1633085682535,4.72011,3214.8,3214.3,0.003]
[1633085682935,23.52011,3214.8,3214.3,0.003]
[1633085683135,4.72011,3214.8,3214.3,0.003]
[1633085683338,0.86970718,3214.7,3214.3,0.003]
[1633085683937,3.11163,3214.6,3214.3,0.003]
[1633085684536,3.11163,3214.6,3214.2,0.003]
[1633085684936,3.11163,3214.6,3214.4,0.12407481]
[1633085685339,3.11163,3214.6,3214.5,0.003]
[1633085685936,3.06163,3214.6,3214.5,0.003]
[1633085686138,12.60462997,3214.6,3214.5,0.003]
[1633085686537,3.90462997,3214.6,3214.5,0.003]
[1633085686737,4.66689,3214.9,3214.5,0.003]
[1633085686940,6.37565,3215.2,3214.5,0.003]
[1633085687136,6.37565,3215.2,3214.4,0.07707481]
[1633085687339,0.003,3215.0,3214.4,0.07707481]
[1633085687737,0.92781838,3214.7,3214.4,0.07707481]
[1633085688138,4.66748,3214.7,3214.4,0.07707481]
[1633085688337,0.003,3215.0,3214.4,0.07707481]
[1633085689138,0.92208211,3214.7,3214.4,0.07707481]
[1633085689540,4.03377211,3214.7,3214.4,0.07707481]
[1633085689742,4.03377211,3214.7,3214.1,0.22832682]
[1633085689942,0.27658403,3214.7,3214.1,0.22832682]
[1633085690140,0.003,3215.0,3214.4,1.294]
[1633085690340,0.003,3215.0,3214.2,3.21158215]
[1633085690541,0.003,3215.0,3214.2,6.32260145]
[1633085690940,0.001,3214.8,3214.3,0.95992664]
[1633085692140,0.001,3214.8,3214.4,0.95602458]
[1633085692340,0.001,3214.8,3214.4,4.66618]
[1633085692540,0.001,3214.8,3214.3,4.07025664]
[1633085693341,0.001,3214.8,3214.5,4.66603]
[1633085694146,0.001,3214.8,3214.4,0.038358]
[1633085694344,0.001,3214.8,3214.5,3.10928]
[1633085694545,0.001,3214.8,3214.6,7.00845422]
[1633085694744,0.001,3214.8,3214.7,19.59881701]
[1633085694944,0.001,3214.8,3214.7,19.49881701]
[1633085695547,0.27750934,3214.8,3214.7,19.49881701]
[1633085695749,0.003,3215.0,3214.8,13.75066474]
[1633085695944,0.003,3215.0,3214.9,5.0]
[1633085696148,0.003,3216.0,3214.9,5.02522527]
[1633085696346,0.003,3216.0,3215.0,0.153]
[1633085696545,0.003,3216.0,3215.0,0.156]
[1633085696948,0.003,3216.0,3215.9,5.7]
[1633085697147,0.003,3216.0,3215.9,3.1087733]
[1633085697552,0.003,3216.5,3215.9,3.1087733]
[1633085697747,0.003,3216.5,3216.0,1.00061904]
[1633085697948,0.003,3216.5,3216.0,4.66313]
[1633085698352,1.08468361,3216.2,3216.0,4.66313]
[1633085698549,1.08468361,3216.2,3216.1,0.75459644]
[1633085698949,1.08468361,3216.2,3216.1,1.88812541]
[1633085699750,0.003,3216.5,3216.2,7.7]
[1633085700150,0.003,3216.5,3216.3,4.66228]
[1633085700952,0.4793976,3216.7,3216.4,10.65]
[1633085701150,0.13765751,3216.4,3216.3,4.66228]
[1633085701351,0.13765751,3216.4,3216.3,6.87369987]
[1633085702150,0.13765751,3216.4,3216.3,14.27369987]
[1633085703152,0.13765751,3216.4,3216.3,6.87369987]
[1633085703555,1.297,3217.0,3216.5,3.10786]
[1633085703754,1.297,3217.0,3216.8,3.1077113]
[1633085703954,1.297,3217.0,3216.9,0.85611644]
[1633085704357,1.13029588,3218.7,3218.6,1.33486608]
[1633085704557,1.13029588,3218.7,3218.6,1.42600314]
[1633085704558,9.588e-05,3218.7,3218.6,1.42600314]
[1633085704757,0.1282,3219.0,3218.7,16.65]
[1633085704758,2.48,3218.9,3218.7,16.65]
[1633085704958,1.64488887,3220.8,3218.9,16.85]
[1633085705160,0.006,3220.8,3219.4,9.9]
[1633085705359,0.006,3220.8,3219.9,0.5850829]
[1633085705561,5.19711036,3221.1,3220.1,17.8]
[1633085705759,0.009,3221.5,3221.0,0.83724646]
[1633085705760,0.80803559,3221.5,3221.0,0.83724646]
[1633085705960,0.009,3221.5,3221.1,0.0669434]
[1633085706161,0.009,3221.5,3221.0,3.1036211]
[1633085706558,0.009,3221.5,3221.1,8.18225773]
[1633085706866,0.02305943,3221.2,3221.1,2.18500102]
[1633085707059,0.02305943,3221.2,3221.1,14.33800102]
[1633085707460,0.02305943,3221.2,3221.1,0.46237139]
[1633085707661,0.02305943,3221.2,3221.1,0.30937139]
[1633085707859,0.02486202,3221.2,3221.1,0.30937139]
[1633085708061,0.02486202,3221.2,3221.1,8.30937139]
[1633085708261,0.00579827,3221.4,3221.1,8.30937139]
[1633085708461,0.00579827,3221.4,3221.2,1.64220852]
[1633085708662,0.00579827,3221.4,3221.2,0.89942361]
[1633085708862,0.00579827,3221.4,3221.1,0.30937139]
[1633085709064,0.00579827,3221.4,3221.2,0.00888523]
[1633085709263,0.00579827,3221.4,3221.3,0.34293943]
[1633085709661,0.00161912,3221.3,3221.2,0.00888523]
[1633085709868,9.57831454,3220.3,3220.0,0.003]
[1633085710065,2.00503578,3220.1,3219.9,8.29e-05]
[1633085710263,17.82523269,3220.0,3219.6,0.32605979]
[1633085710463,17.82523269,3220.0,3219.2,2.0]
[1633085710464,0.003,3219.5,3219.3,0.003]
[1633085710861,0.001,3219.4,3219.3,0.003]
[1633085711265,0.003,3219.5,3219.3,5.58090215]
[1633085711461,0.003,3219.5,3219.4,0.17854114]
[1633085711662,0.003,3219.5,3219.4,0.18154114]
[1633085711861,9.57831454,3220.3,3219.5,18.64202921]
[1633085712061,9.57831454,3220.3,3220.2,0.74466801]
[1633085712260,9.57831454,3220.3,3219.9,0.86958953]
[1633085712461,9.57831454,3220.3,3219.5,0.003]
[1633085713262,0.80674742,3219.6,3218.9,0.03184222]
[1633085713462,0.80674742,3219.6,3219.0,4.66188]
[1633085713666,0.80674742,3219.6,3219.0,0.006]
[1633085713865,0.80674742,3219.6,3219.1,0.003]
[1633085714063,9.57831454,3220.3,3219.1,3.10859]
[1633085714261,9.57831454,3220.3,3219.1,3.10559]
[1633085714462,0.02796727,3219.6,3219.4,6.2104]
[1633085714662,0.02796727,3219.6,3219.2,0.003]
[1633085714863,0.02796727,3219.6,3219.5,0.003]
[1633085715268,0.02796727,3219.6,3219.0,0.003]
[1633085715465,0.02796727,3219.6,3218.0,0.971]
[1633085715466,20.82797399,3218.3,3218.0,0.971]
[1633085715664,20.82797399,3218.3,3217.5,0.003]
[1633085715665,0.871,3218.0,3217.5,0.003]
[1633085715869,0.871,3218.0,3217.2,0.003]
[1633085716065,0.70987285,3217.5,3217.2,0.003]
[1633085716664,0.871,3218.0,3217.2,0.003]
[1633085717465,0.94547967,3217.8,3217.2,0.003]
[1633085717664,18.53291986,3217.3,3217.2,0.003]
[1633085717864,0.5277489,3217.1,3216.4,0.006]
[1633085718066,3.7509488,3217.0,3216.4,0.006]
[1633085718265,0.5277489,3217.1,3217.0,0.871]
[1633085718467,0.39629564,3216.3,3215.4,0.003]
[1633085718667,0.8697655,3215.9,3215.4,0.003]
[1633085718867,1.18906057,3216.3,3215.4,0.003]
[1633085719467,1.18906057,3216.3,3215.5,1.93698045]
[1633085719671,1.18906057,3216.3,3215.4,0.003]
[1633085719672,0.02796727,3215.9,3215.4,0.003]
[1633085719866,0.72157487,3215.8,3215.4,0.003]
[1633085720066,9.85,3215.7,3215.3,4.36176801]
[1633085720266,0.02796727,3215.9,3214.8,0.003]
[1633085720468,0.02796727,3215.9,3215.7,0.08453403]
[1633085720666,1.87978912,3215.3,3214.5,0.006]
[1633085720866,4.53111774,3215.8,3214.5,0.006]
[1633085721166,4.53111774,3215.8,3214.3,6.16430956]
[1633085721167,0.02796727,3215.9,3214.7,0.079913]
[1633085721367,0.02796727,3215.9,3214.6,0.02434501]
[1633085721567,0.02796727,3215.9,3214.8,0.003]
[1633085721769,0.02796727,3215.9,3214.8,1.16289896]
[1633085721967,0.02796727,3215.9,3214.4,0.006]
[1633085722233,0.02796727,3215.9,3214.9,0.003]
[1633085722234,0.019329,3215.1,3214.9,0.003]
[1633085722368,0.019329,3215.1,3214.9,0.00138088]
[1633085722369,14.003,3215.0,3214.9,0.00138088]
[1633085722568,14.2830601,3215.0,3213.0,0.01338088]
[1633085722767,14.2830601,3215.0,3214.5,0.00138088]
[1633085722768,3.69013837,3214.9,3214.5,0.00138088]
[1633085722968,0.153,3214.9,3214.5,0.00138088]
[1633085723170,0.153,3214.9,3213.0,0.01338088]
[1633085723367,0.153,3214.9,3214.0,0.00738088]
[1633085723368,18.5672601,3214.1,3214.0,0.00738088]
[1633085723568,3.11214,3214.7,3214.0,0.00738088]
[1633085723769,3.11214,3214.7,3213.6,0.00738088]
[1633085724171,0.153,3214.9,3213.6,0.00738088]
[1633085724572,4.66865,3214.2,3213.6,0.00738088]
[1633085724770,6.22461,3214.7,3213.0,0.01338088]
[1633085724971,6.22461,3214.7,3213.1,0.01038088]
[1633085724972,0.02796727,3213.8,3213.1,0.01038088]
[1633085725234,0.02796727,3213.8,3212.7,0.079913]
[1633085725235,0.02796727,3213.8,3213.3,0.97612631]
[1633085725573,0.02796727,3213.8,3213.4,0.01038088]
[1633085725771,0.02796727,3213.8,3213.4,0.0520718]
[1633085726172,0.02796727,3213.8,3213.5,0.01038088]
[1633085726571,10.0,3213.6,3213.5,0.01038088]
[1633085728376,10.33563066,3213.6,3213.5,0.01038088]
[1633085728573,10.33563066,3213.6,3211.9,0.01938088]
[1633085728773,10.33563066,3213.6,3212.7,0.72862254]
[1633085728774,0.76798706,3213.3,3212.7,0.72862254]
[1633085728974,0.07462679,3212.7,3211.9,0.01938088]
[1633085729173,0.07462679,3212.7,3211.9,0.006]
[1633085729174,3.862767,3212.7,3211.9,0.006]
[1633085729376,0.7483513,3212.7,3211.7,0.021]
[1633085729577,0.5953513,3212.7,3211.7,0.021]
[1633085729974,0.5953513,3212.7,3212.1,0.71748259]
[1633085730375,0.02796727,3212.4,3212.2,0.018]
[1633085731376,0.02796727,3212.4,3212.3,7.1913834]
[1633085731783,0.02796727,3212.4,3212.3,0.0593834]
[1633085732775,0.02796727,3212.4,3212.3,11.4593834]
[1633085732976,0.02796727,3212.4,3212.3,1.00285561]
[1633085733175,0.02796727,3212.4,3212.3,0.0593834]
[1633085733777,0.79226349,3212.4,3212.3,0.018]
[1633085733976,0.36402784,3212.4,3212.3,0.018]
[1633085734240,0.36402784,3212.4,3212.1,0.99596642]
[1633085734579,0.36402784,3212.4,3212.2,0.018]
[1633085735177,0.36402784,3212.4,3211.7,0.021]
[1633085735378,0.33606057,3212.4,3211.7,0.01927535]
[1633085735879,0.02796727,3212.0,3211.7,0.01927535]
[1633085736888,0.02796727,3212.0,3211.8,0.04126812]
[1633085737281,0.02796727,3212.0,3211.9,0.01927535]
[1633085737681,4.42796727,3212.0,3211.9,0.01927535]
[1633085738080,0.02796727,3212.0,3211.9,0.01927535]
[1633085739380,0.36417744,3212.0,3211.9,0.01927535]
[1633085739579,0.36417744,3212.0,3211.9,9.83126814]
[1633085739784,0.26417744,3212.0,3211.9,2.81199279]
[1633085740263,0.26417744,3212.0,3211.9,1.71260713]
[1633085740581,0.26417744,3212.0,3211.9,0.71260713]
[1633085741581,0.26417744,3212.0,3211.9,7.90122513]
[1633085741784,0.26417744,3212.0,3211.9,10.19522513]
[1633085741982,0.26417744,3212.0,3211.9,18.19522513]
[1633085742182,0.5953513,3212.7,3211.9,10.19522513]
[1633085742384,0.5953513,3212.7,3212.0,0.07731028]
[1633085742582,0.5953513,3212.7,3212.0,0.09658563]
[1633085742782,0.5953513,3212.7,3212.1,0.018]
[1633085743384,0.5953513,3212.7,3212.4,0.9965104]
[1633085743787,0.5953513,3212.7,3212.5,0.93703849]
[1633085743982,0.5953513,3212.7,3212.5,0.018]
[1633085744182,0.5953513,3212.7,3212.6,0.015]
[1633085744483,0.5953513,3212.7,3212.5,0.018]
[1633085744885,0.89530202,3212.7,3212.5,0.097913]
[1633085745084,11.7639,3214.1,3212.7,7.2953513]
[1633085745286,18.17,3213.9,3212.8,4.66779]
[1633085745483,18.17,3213.9,3212.8,4.68279]
[1633085745684,0.76801283,3213.4,3212.9,0.015]
[1633085745883,0.76801283,3213.4,3212.9,0.85914959]
[1633085746082,18.17,3213.9,3212.9,0.84414959]
[1633085746284,16.39095,3213.9,3213.0,0.015]
[1633085746883,16.39095,3213.9,3213.4,0.89688097]
[1633085747284,16.39095,3213.9,3213.5,0.012]
[1633085747685,16.39095,3213.9,3213.5,0.22772166]
[1633085748083,16.39095,3213.9,3213.6,0.009]
[1633085749885,4.66898,3213.8,3213.6,0.009]
[1633085750089,27.84095,3213.7,3213.6,0.009]
[1633085750285,16.69353288,3213.7,3213.6,0.009]
[1633085750684,16.69353288,3213.7,3212.8,0.015]
[1633085750884,1.0013685,3213.3,3212.8,0.015]
[1633085751787,18.31958288,3213.7,3212.8,0.015]
[1633085752588,0.91779533,3213.1,3212.8,0.015]
[1633085752785,0.14958288,3213.7,3212.8,0.015]
[1633085752986,3.1129083,3213.3,3212.8,0.015]
[1633085753387,3.1129083,3213.3,3212.9,0.22761928]
[1633085753688,18.17,3213.4,3213.0,0.015]
[1633085754088,21.2828416,3213.4,3213.0,0.015]
[1633085754286,0.96982827,3213.2,3213.0,0.015]
[1633085754487,18.17,3213.1,3213.0,0.015]
[1633085754686,3.1128416,3213.4,3212.9,0.19261928]
[1633085754892,0.003,3213.5,3213.3,0.079913]
[1633085755487,0.003,3213.5,3213.4,12.26679]
[1633085755689,0.003,3213.5,3213.4,17.31549272]
[1633085755886,0.003,3213.5,3213.4,6.60418272]
[1633085756888,0.003,3213.5,3213.4,7.89818272]
[1633085757489,0.003,3213.5,3213.4,8.70987685]
[1633085757690,4.66775,3214.4,3213.4,4.04308685]
[1633085757898,4.66775,3214.4,3213.5,0.003]
[1633085758090,4.66775,3214.4,3214.0,0.003]
[1633085758691,0.84804366,3214.2,3213.6,0.003]
[1633085758892,13.5,3214.1,3213.6,0.003]
[1633085759094,5.51598366,3214.2,3213.6,0.003]
[1633085759095,5.31598366,3214.2,3213.6,0.003]
[1633085759294,5.31598366,3214.2,3213.1,2.9038603]
[1633085759495,5.31598366,3214.2,3213.1,0.006]
[1633085759691,5.31598366,3214.2,3213.0,3.11526]
[1633085759692,4.66794,3214.2,3213.2,0.006]
[1633085760094,7.7799904,3214.2,3213.2,0.006]
[1633085760494,7.7799904,3214.2,3213.7,1.16411038]
[1633085760693,8.63682306,3214.2,3213.7,0.82696671]
[1633085760896,5.82957938,3214.8,3213.8,0.003]
[1633085761095,0.1206,3215.0,3213.9,4.66661]
[1633085761357,0.27202148,3214.8,3214.0,3.11108]
[1633085761556,0.27202148,3214.8,3214.0,3.11408]
[1633085761758,0.27202148,3214.8,3214.4,0.90457581]
[1633085762358,0.27202148,3214.8,3214.0,4.11408]
[1633085762958,0.27202148,3214.8,3214.0,0.003]
[1633085762959,18.44202148,3214.8,3214.0,0.003]
[1633085763359,18.59502148,3214.8,3213.2,0.006]